{"text_format":"3","workbook":"xlsx","n_sheets":1,"sheets":["Maandelijks gezinsbudget"],"read":"whole","date_system":"1900"}

{"sheet":"Maandelijks gezinsbudget","index":0,"n_rows":67,"n_cols":10,"rows_kept":67}
[null,"Maandelijks gezinsbudget"]
[null,"Samenvattingstabel","Totaal\nGeraamde kosten","Totaal\nWerkelijke kosten","Totaal\nVerschil",null,"Geraamde maandelijkse inkomstenbron","Bedrag"]
[null,null,{"$f":"Huisvesting[[#Totals],[Geraamde\nKosten]]+Vervoer[[#Totals],[Geraamde\nKosten]]+Verzekering[[#Totals],[Geraamde\nKosten]]+Eten_en_drinken[[#Totals],[Geraamde\nKosten]]+Kinderen[[#Totals],[Geraamde\nKosten]]+Juridisch[[#Totals],[Geraamde\nKosten]]+Spaargeld[[#Totals],[Geraamde\nKosten]]+Leningen[[#Totals],[Geraamde\nKosten]]+Amusement[[#Totals],[Geraamde\nKosten]]+Belastingen[[#Totals],[Geraamde \nKosten]]+PersoonlijkeVerzorging[[#Totals],[Geraamde\nKosten]]+Huisdieren[[#Totals],[Geraamde\nKosten]]+Geschenken[[#Totals],[Geraamde\nKosten]]","v":{"v":1203,"d":"€ 1,203"}},{"$f":"Huisvesting[[#Totals],[Werkelijke\nKosten]]+Vervoer[[#Totals],[Werkelijke\nKosten]]+Verzekering[[#Totals],[Werkelijke\nKosten]]+Eten_en_drinken[[#Totals],[Werkelijke\nKosten]]+Kinderen[[#Totals],[Werkelijke\nKosten]]+Juridisch[[#Totals],[Werkelijke\nKosten]]+Spaargeld[[#Totals],[Werkelijke\nKosten]]+Leningen[[#Totals],[Werkelijke\nKosten]]+Amusement[[#Totals],[Werkelijke\nKosten]]+Belastingen[[#Totals],[Werkelijke \nKosten]]+PersoonlijkeVerzorging[[#Totals],[Werkelijke\nKosten]]+Huisdieren[[#Totals],[Werkelijke\nKosten]]+Geschenken[[#Totals],[Werkelijke\nKosten]]","v":{"v":1317,"d":"€ 1,317"}},{"$f":"Huisvesting[[#Totals],[Verschil]]+Vervoer[[#Totals],[Verschil]]+Verzekering[[#Totals],[Verschil]]+Eten_en_drinken[[#Totals],[Verschil]]+Kinderen[[#Totals],[Verschil]]+Juridisch[[#Totals],[Verschil]]+Spaargeld[[#Totals],[Verschil]]+Leningen[[#Totals],[Verschil]]+Amusement[[#Totals],[Verschil]]+Belastingen[[#Totals],[Verschil]]+PersoonlijkeVerzorging[[#Totals],[Verschil]]+Huisdieren[[#Totals],[Verschil]]+Geschenken[[#Totals],[Verschil]]","v":{"v":-114,"d":"€ -114"}},null,"Inkomsten 1",{"v":4000,"d":"€ 4,000"}]
[{"$nulls":6},"Inkomsten 2",{"v":1200,"d":"€ 1,200"}]
[null,"Huisvesting","Geraamde\nKosten","Werkelijke\nKosten","Verschil",null,"Extra inkomsten",{"v":300,"d":"€ 300"}]
[null,"Hypotheek of huur",{"v":1000,"d":"€ 1,000"},{"v":1000,"d":"€ 1,000"},{"$f":"Huisvesting[Geraamde\nKosten]-Huisvesting[Werkelijke\nKosten]","v":{"v":0,"d":"€ 0"}},null,"Totale maandelijkse inkomsten",{"$f":"SUM(H3:H5)","v":{"v":5500,"d":"€ 5,500"}}]
[null,"Tweede hypotheek of huur",{"v":0,"d":"€ 0"},{"v":0,"d":"€ 0"},{"$f":"Huisvesting[Geraamde\nKosten]-Huisvesting[Werkelijke\nKosten]","v":{"v":0,"d":"€ 0"}}]
[null,"Telefoon",{"v":62,"d":"€ 62"},{"v":100,"d":"€ 100"},{"$f":"Huisvesting[Geraamde\nKosten]-Huisvesting[Werkelijke\nKosten]","v":{"v":-38,"d":"€ -38"}},null,"Werkelijke maandelijkse inkomstenbron","Bedrag"]
[null,"Elektriciteit",{"v":44,"d":"€ 44"},{"v":125,"d":"€ 125"},{"$f":"Huisvesting[Geraamde\nKosten]-Huisvesting[Werkelijke\nKosten]","v":{"v":-81,"d":"€ -81"}},null,"Inkomsten 1",{"v":4000,"d":"€ 4,000"}]
[null,"Gas",{"v":22,"d":"€ 22"},{"v":35,"d":"€ 35"},{"$f":"Huisvesting[Geraamde\nKosten]-Huisvesting[Werkelijke\nKosten]","v":{"v":-13,"d":"€ -13"}},null,"Inkomsten 2",{"v":1200,"d":"€ 1,200"}]
[null,"Water en riolering",{"v":8,"d":"€ 8"},{"v":8,"d":"€ 8"},{"$f":"Huisvesting[Geraamde\nKosten]-Huisvesting[Werkelijke\nKosten]","v":{"v":0,"d":"€ 0"}},null,"Extra inkomsten",{"v":300,"d":"€ 300"}]
[null,"Tv",{"v":34,"d":"€ 34"},{"v":39,"d":"€ 39"},{"$f":"Huisvesting[Geraamde\nKosten]-Huisvesting[Werkelijke\nKosten]","v":{"v":-5,"d":"€ -5"}},null,"Totale maandelijkse inkomsten",{"$f":"SUM(H9:H11)","v":{"v":5500,"d":"€ 5,500"}}]
[null,"Afvalverwijdering",{"v":10,"d":"€ 10"},{"v":10,"d":"€ 10"},{"$f":"Huisvesting[Geraamde\nKosten]-Huisvesting[Werkelijke\nKosten]","v":{"v":0,"d":"€ 0"}}]
[null,"Onderhoud of reparaties",{"v":23,"d":"€ 23"},{"v":0,"d":"€ 0"},{"$f":"Huisvesting[Geraamde\nKosten]-Huisvesting[Werkelijke\nKosten]","v":{"v":23,"d":"€ 23"}},null,"Saldo","Bedrag"]
[null,"Apparatuur",{"v":0,"d":"€ 0"},{"v":0,"d":"€ 0"},{"$f":"Huisvesting[Geraamde\nKosten]-Huisvesting[Werkelijke\nKosten]","v":{"v":0,"d":"€ 0"}},null,"Gepland saldo",{"$f":"SUM(H6-'Maandelijks gezinsbudget'!$C$3:$C$3)","v":{"v":4297,"d":"€ 4,297"}}]
[null,"Overig",{"v":0,"d":"€ 0"},{"v":0,"d":"€ 0"},{"$f":"Huisvesting[Geraamde\nKosten]-Huisvesting[Werkelijke\nKosten]","v":{"v":0,"d":"€ 0"}},null,"Werkelijk saldo",{"$f":"SUM(H12-D3)","v":{"v":4183,"d":"€ 4,183"}}]
[null,"Totaal",{"$f":"SUBTOTAL(109,Huisvesting[Geraamde\nKosten])","v":{"v":1203,"d":"€ 1,203"}},{"$f":"SUBTOTAL(109,Huisvesting[Werkelijke\nKosten])","v":{"v":1317,"d":"€ 1,317"}},{"$f":"SUBTOTAL(109,Huisvesting[Verschil])","v":{"v":-114,"d":"€ -114"}},null,"Verschil",{"$f":"SUM(H16-H15)","v":{"v":-114,"d":"€ -114"}}]
[]
[null,"Vervoer","Geraamde\nKosten","Werkelijke\nKosten","Verschil",null,"Leningen","Geraamde\nKosten","Werkelijke\nKosten","Verschil"]
[null,"Betaling 1e auto",null,null,{"$f":"Vervoer[Geraamde\nKosten]-Vervoer[Werkelijke\nKosten]","v":{"v":0,"d":"€ 0"}},null,"Persoonlijk",null,null,{"$f":"Leningen[Geraamde\nKosten]-Leningen[Werkelijke\nKosten]","v":{"v":0,"d":"€ 0"}}]
[null,"Betaling 2e auto",null,null,{"$f":"Vervoer[Geraamde\nKosten]-Vervoer[Werkelijke\nKosten]","v":{"v":0,"d":"€ 0"}},null,"Student",null,null,{"$f":"Leningen[Geraamde\nKosten]-Leningen[Werkelijke\nKosten]","v":{"v":0,"d":"€ 0"}}]
[null,"Openbaar vervoer",null,null,{"$f":"Vervoer[Geraamde\nKosten]-Vervoer[Werkelijke\nKosten]","v":{"v":0,"d":"€ 0"}},null,"Creditcard",null,null,{"$f":"Leningen[Geraamde\nKosten]-Leningen[Werkelijke\nKosten]","v":{"v":0,"d":"€ 0"}}]
[null,"Verzekering",null,null,{"$f":"Vervoer[Geraamde\nKosten]-Vervoer[Werkelijke\nKosten]","v":{"v":0,"d":"€ 0"}},null,"Creditcard",null,null,{"$f":"Leningen[Geraamde\nKosten]-Leningen[Werkelijke\nKosten]","v":{"v":0,"d":"€ 0"}}]
[null,"Kentekenbewijs/rijbewijs",null,null,{"$f":"Vervoer[Geraamde\nKosten]-Vervoer[Werkelijke\nKosten]","v":{"v":0,"d":"€ 0"}},null,"Creditcard",null,null,{"$f":"Leningen[Geraamde\nKosten]-Leningen[Werkelijke\nKosten]","v":{"v":0,"d":"€ 0"}}]
[null,"Brandstof",null,null,{"$f":"Vervoer[Geraamde\nKosten]-Vervoer[Werkelijke\nKosten]","v":{"v":0,"d":"€ 0"}},null,"Overig",null,null,{"$f":"Leningen[Geraamde\nKosten]-Leningen[Werkelijke\nKosten]","v":{"v":0,"d":"€ 0"}}]
[null,"Onderhoud",null,null,{"$f":"Vervoer[Geraamde\nKosten]-Vervoer[Werkelijke\nKosten]","v":{"v":0,"d":"€ 0"}},null,"Totaal",{"$f":"SUBTOTAL(109,Leningen[Geraamde\nKosten])","v":{"v":0,"d":"€ 0"}},{"$f":"SUBTOTAL(109,Leningen[Werkelijke\nKosten])","v":{"v":0,"d":"€ 0"}},{"$f":"SUBTOTAL(109,Leningen[Verschil])","v":{"v":0,"d":"€ 0"}}]
[null,"Overig",null,null,{"$f":"Vervoer[Geraamde\nKosten]-Vervoer[Werkelijke\nKosten]","v":{"v":0,"d":"€ 0"}}]
[null,"Totaal",{"$f":"SUBTOTAL(109,Vervoer[Geraamde\nKosten])","v":{"v":0,"d":"€ 0"}},{"$f":"SUBTOTAL(109,Vervoer[Werkelijke\nKosten])","v":{"v":0,"d":"€ 0"}},{"$f":"SUBTOTAL(109,Vervoer[Verschil])","v":{"v":0,"d":"€ 0"}},null,"Amusement","Geraamde\nKosten","Werkelijke\nKosten","Verschil"]
[{"$nulls":6},"Video/dvd",null,null,{"$f":"Amusement[Geraamde\nKosten]-Amusement[Werkelijke\nKosten]","v":{"v":0,"d":"€ 0"}}]
[null,"Verzekering","Geraamde\nKosten","Werkelijke\nKosten","Verschil",null,"Cd's",null,null,{"$f":"Amusement[Geraamde\nKosten]-Amusement[Werkelijke\nKosten]","v":{"v":0,"d":"€ 0"}}]
[null,"Huis",null,null,{"$f":"Verzekering[Geraamde\nKosten]-Verzekering[Werkelijke\nKosten]","v":{"v":0,"d":"€ 0"}},null,"Films",null,null,{"$f":"Amusement[Geraamde\nKosten]-Amusement[Werkelijke\nKosten]","v":{"v":0,"d":"€ 0"}}]
[null,"Gezondheid",null,null,{"$f":"Verzekering[Geraamde\nKosten]-Verzekering[Werkelijke\nKosten]","v":{"v":0,"d":"€ 0"}},null,"Concerten",null,null,{"$f":"Amusement[Geraamde\nKosten]-Amusement[Werkelijke\nKosten]","v":{"v":0,"d":"€ 0"}}]
[null,"Leven",null,null,{"$f":"Verzekering[Geraamde\nKosten]-Verzekering[Werkelijke\nKosten]","v":{"v":0,"d":"€ 0"}},null,"Sportevenementen",null,null,{"$f":"Amusement[Geraamde\nKosten]-Amusement[Werkelijke\nKosten]","v":{"v":0,"d":"€ 0"}}]
[null,"Overig",null,null,{"$f":"Verzekering[Geraamde\nKosten]-Verzekering[Werkelijke\nKosten]","v":{"v":0,"d":"€ 0"}},null,"Theater",null,null,{"$f":"Amusement[Geraamde\nKosten]-Amusement[Werkelijke\nKosten]","v":{"v":0,"d":"€ 0"}}]
[null,"Totaal",{"$f":"SUBTOTAL(109,Verzekering[Geraamde\nKosten])","v":{"v":0,"d":"€ 0"}},{"$f":"SUBTOTAL(109,Verzekering[Werkelijke\nKosten])","v":{"v":0,"d":"€ 0"}},{"$f":"SUBTOTAL(109,Verzekering[Verschil])","v":{"v":0,"d":"€ 0"}},null,"Overig",null,null,{"$f":"Amusement[Geraamde\nKosten]-Amusement[Werkelijke\nKosten]","v":{"v":0,"d":"€ 0"}}]
[{"$nulls":6},"Totaal",{"$f":"SUBTOTAL(109,Amusement[Geraamde\nKosten])","v":{"v":0,"d":"€ 0"}},{"$f":"SUBTOTAL(109,Amusement[Werkelijke\nKosten])","v":{"v":0,"d":"€ 0"}},{"$f":"SUBTOTAL(109,Amusement[Verschil])","v":{"v":0,"d":"€ 0"}}]
[null,"Eten en drinken","Geraamde\nKosten","Werkelijke\nKosten","Verschil"]
[null,"Boodschappen",null,null,{"$f":"Eten_en_drinken[Geraamde\nKosten]-Eten_en_drinken[Werkelijke\nKosten]","v":{"v":0,"d":"€ 0"}},null,"Belastingen","Geraamde \nKosten","Werkelijke \nKosten","Verschil"]
[null,"Uit eten",null,null,{"$f":"Eten_en_drinken[Geraamde\nKosten]-Eten_en_drinken[Werkelijke\nKosten]","v":{"v":0,"d":"€ 0"}},null,"Overheid",null,null,{"$f":"Belastingen[Geraamde \nKosten]-Belastingen[Werkelijke \nKosten]","v":{"v":0,"d":"€ 0"}}]
[null,"Overig",null,null,{"$f":"Eten_en_drinken[Geraamde\nKosten]-Eten_en_drinken[Werkelijke\nKosten]","v":{"v":0,"d":"€ 0"}},null,"Provincie",null,null,{"$f":"Belastingen[Geraamde \nKosten]-Belastingen[Werkelijke \nKosten]","v":{"v":0,"d":"€ 0"}}]
[null,"Totaal",{"$f":"SUBTOTAL(109,Eten_en_drinken[Geraamde\nKosten])","v":{"v":0,"d":"€ 0"}},{"$f":"SUBTOTAL(109,Eten_en_drinken[Werkelijke\nKosten])","v":{"v":0,"d":"€ 0"}},{"$f":"SUBTOTAL(109,Eten_en_drinken[Verschil])","v":{"v":0,"d":"€ 0"}},null,"Gemeente",null,null,{"$f":"Belastingen[Geraamde \nKosten]-Belastingen[Werkelijke \nKosten]","v":{"v":0,"d":"€ 0"}}]
[{"$nulls":6},"Overig",null,null,{"$f":"Belastingen[Geraamde \nKosten]-Belastingen[Werkelijke \nKosten]","v":{"v":0,"d":"€ 0"}}]
[null,"Kinderen","Geraamde\nKosten","Werkelijke\nKosten","Verschil",null,"Totaal",{"$f":"SUBTOTAL(109,Belastingen[Geraamde \nKosten])","v":{"v":0,"d":"€ 0"}},{"$f":"SUBTOTAL(109,Belastingen[Werkelijke \nKosten])","v":{"v":0,"d":"€ 0"}},{"$f":"SUBTOTAL(109,Belastingen[Verschil])","v":{"v":0,"d":"€ 0"}}]
[null,"Gezondheid",null,null,{"$f":"Kinderen[Geraamde\nKosten]-Kinderen[Werkelijke\nKosten]","v":{"v":0,"d":"€ 0"}}]
[null,"Kleding",null,null,{"$f":"Kinderen[Geraamde\nKosten]-Kinderen[Werkelijke\nKosten]","v":{"v":0,"d":"€ 0"}},null,"Persoonlijke verzorging","Geraamde\nKosten","Werkelijke\nKosten","Verschil"]
[null,"Studiekosten",null,null,{"$f":"Kinderen[Geraamde\nKosten]-Kinderen[Werkelijke\nKosten]","v":{"v":0,"d":"€ 0"}},null,"Gezondheid",null,null,{"$f":"PersoonlijkeVerzorging[Geraamde\nKosten]-PersoonlijkeVerzorging[Werkelijke\nKosten]","v":{"v":0,"d":"€ 0"}}]
[null,"Studiebenodigdheden",null,null,{"$f":"Kinderen[Geraamde\nKosten]-Kinderen[Werkelijke\nKosten]","v":{"v":0,"d":"€ 0"}},null,"Haar/nagels",null,null,{"$f":"PersoonlijkeVerzorging[Geraamde\nKosten]-PersoonlijkeVerzorging[Werkelijke\nKosten]","v":{"v":0,"d":"€ 0"}}]
[null,"Bijdragen aan organisaties",null,null,{"$f":"Kinderen[Geraamde\nKosten]-Kinderen[Werkelijke\nKosten]","v":{"v":0,"d":"€ 0"}},null,"Kleding",null,null,{"$f":"PersoonlijkeVerzorging[Geraamde\nKosten]-PersoonlijkeVerzorging[Werkelijke\nKosten]","v":{"v":0,"d":"€ 0"}}]
[null,"Lunchgeld",null,null,{"$f":"Kinderen[Geraamde\nKosten]-Kinderen[Werkelijke\nKosten]","v":{"v":0,"d":"€ 0"}},null,"Stomerij",null,null,{"$f":"PersoonlijkeVerzorging[Geraamde\nKosten]-PersoonlijkeVerzorging[Werkelijke\nKosten]","v":{"v":0,"d":"€ 0"}}]
[null,"Kinderopvang",null,null,{"$f":"Kinderen[Geraamde\nKosten]-Kinderen[Werkelijke\nKosten]","v":{"v":0,"d":"€ 0"}},null,"Sportclub",null,null,{"$f":"PersoonlijkeVerzorging[Geraamde\nKosten]-PersoonlijkeVerzorging[Werkelijke\nKosten]","v":{"v":0,"d":"€ 0"}}]
[null,"Speelgoed",null,null,{"$f":"Kinderen[Geraamde\nKosten]-Kinderen[Werkelijke\nKosten]","v":{"v":0,"d":"€ 0"}},null,"Bijdragen aan organisaties",null,null,{"$f":"PersoonlijkeVerzorging[Geraamde\nKosten]-PersoonlijkeVerzorging[Werkelijke\nKosten]","v":{"v":0,"d":"€ 0"}}]
[null,"Overig",null,null,{"$f":"Kinderen[Geraamde\nKosten]-Kinderen[Werkelijke\nKosten]","v":{"v":0,"d":"€ 0"}},null,"Overig",null,null,{"$f":"PersoonlijkeVerzorging[Geraamde\nKosten]-PersoonlijkeVerzorging[Werkelijke\nKosten]","v":{"v":0,"d":"€ 0"}}]
[null,"Totaal",{"$f":"SUBTOTAL(109,Kinderen[Geraamde\nKosten])","v":{"v":0,"d":"€ 0"}},{"$f":"SUBTOTAL(109,Kinderen[Werkelijke\nKosten])","v":{"v":0,"d":"€ 0"}},{"$f":"SUBTOTAL(109,Kinderen[Verschil])","v":{"v":0,"d":"€ 0"}},null,"Totaal",{"$f":"SUBTOTAL(109,PersoonlijkeVerzorging[Geraamde\nKosten])","v":{"v":0,"d":"€ 0"}},{"$f":"SUBTOTAL(109,PersoonlijkeVerzorging[Werkelijke\nKosten])","v":{"v":0,"d":"€ 0"}},{"$f":"SUBTOTAL(109,PersoonlijkeVerzorging[Verschil])","v":{"v":0,"d":"€ 0"}}]
[]
[null,"Juridisch","Geraamde\nKosten","Werkelijke\nKosten","Verschil",null,"Huisdieren","Geraamde\nKosten","Werkelijke\nKosten","Verschil"]
[null,"Advocaat",null,null,{"$f":"Juridisch[Geraamde\nKosten]-Juridisch[Werkelijke\nKosten]","v":{"v":0,"d":"€ 0"}},null,"Eten en drinken",null,null,{"$f":"Huisdieren[Geraamde\nKosten]-Huisdieren[Werkelijke\nKosten]","v":{"v":0,"d":"€ 0"}}]
[null,"Alimentatie",null,null,{"$f":"Juridisch[Geraamde\nKosten]-Juridisch[Werkelijke\nKosten]","v":{"v":0,"d":"€ 0"}},null,"Gezondheid",null,null,{"$f":"Huisdieren[Geraamde\nKosten]-Huisdieren[Werkelijke\nKosten]","v":{"v":0,"d":"€ 0"}}]
[null,"Betalingen",null,null,{"$f":"Juridisch[Geraamde\nKosten]-Juridisch[Werkelijke\nKosten]","v":{"v":0,"d":"€ 0"}},null,"Verzorging",null,null,{"$f":"Huisdieren[Geraamde\nKosten]-Huisdieren[Werkelijke\nKosten]","v":{"v":0,"d":"€ 0"}}]
[null,"Overig",null,null,{"$f":"Juridisch[Geraamde\nKosten]-Juridisch[Werkelijke\nKosten]","v":{"v":0,"d":"€ 0"}},null,"Speeltjes",null,null,{"$f":"Huisdieren[Geraamde\nKosten]-Huisdieren[Werkelijke\nKosten]","v":{"v":0,"d":"€ 0"}}]
[null,"Totaal",{"$f":"SUBTOTAL(109,Juridisch[Geraamde\nKosten])","v":{"v":0,"d":"€ 0"}},{"$f":"SUBTOTAL(109,Juridisch[Werkelijke\nKosten])","v":{"v":0,"d":"€ 0"}},{"$f":"SUBTOTAL(109,Juridisch[Verschil])","v":{"v":0,"d":"€ 0"}},null,"Overig",null,null,{"$f":"Huisdieren[Geraamde\nKosten]-Huisdieren[Werkelijke\nKosten]","v":{"v":0,"d":"€ 0"}}]
[{"$nulls":6},"Totaal",{"$f":"SUBTOTAL(109,Huisdieren[Geraamde\nKosten])","v":{"v":0,"d":"€ 0"}},{"$f":"SUBTOTAL(109,Huisdieren[Werkelijke\nKosten])","v":{"v":0,"d":"€ 0"}},{"$f":"SUBTOTAL(109,Huisdieren[Verschil])","v":{"v":0,"d":"€ 0"}}]
[null,"Spaargeld/investeringen","Geraamde\nKosten","Werkelijke\nKosten","Verschil"]
[null,"Pensioengeld",null,null,{"$f":"Spaargeld[Geraamde\nKosten]-Spaargeld[Werkelijke\nKosten]","v":{"v":0,"d":"€ 0"}},null,"Geschenken en donaties","Geraamde\nKosten","Werkelijke\nKosten","Verschil"]
[null,"Investeringsgeld",null,null,{"$f":"Spaargeld[Geraamde\nKosten]-Spaargeld[Werkelijke\nKosten]","v":{"v":0,"d":"€ 0"}},null,"Liefdadigheid 1",null,null,{"$f":"Geschenken[Geraamde\nKosten]-Geschenken[Werkelijke\nKosten]","v":{"v":0,"d":"€ 0"}}]
[null,"Universiteit",null,null,{"$f":"Spaargeld[Geraamde\nKosten]-Spaargeld[Werkelijke\nKosten]","v":{"v":0,"d":"€ 0"}},null,"Liefdadigheid 2",null,null,{"$f":"Geschenken[Geraamde\nKosten]-Geschenken[Werkelijke\nKosten]","v":{"v":0,"d":"€ 0"}}]
[null,"Overig",null,null,{"$f":"Spaargeld[Geraamde\nKosten]-Spaargeld[Werkelijke\nKosten]","v":{"v":0,"d":"€ 0"}},null,"Liefdadigheid 3",null,null,{"$f":"Geschenken[Geraamde\nKosten]-Geschenken[Werkelijke\nKosten]","v":{"v":0,"d":"€ 0"}}]
[null,"Totaal",{"$f":"SUBTOTAL(109,Spaargeld[Geraamde\nKosten])","v":{"v":0,"d":"€ 0"}},{"$f":"SUBTOTAL(109,Spaargeld[Werkelijke\nKosten])","v":{"v":0,"d":"€ 0"}},{"$f":"SUBTOTAL(109,Spaargeld[Verschil])","v":{"v":0,"d":"€ 0"}},null,"Totaal",{"$f":"SUBTOTAL(109,Geschenken[Geraamde\nKosten])","v":{"v":0,"d":"€ 0"}},{"$f":"SUBTOTAL(109,Geschenken[Werkelijke\nKosten])","v":{"v":0,"d":"€ 0"}},{"$f":"SUBTOTAL(109,Geschenken[Verschil])","v":{"v":0,"d":"€ 0"}}]